bitfinex/quotes_BTCUSD_20241216
["timestamp","ask_amount","ask_price","bid_price","bid_amount"]
[1734308668326,0.14415403,104940.0,104930.0,0.20962037]
[1734308668730,0.14534527,104940.0,104930.0,0.20962037]
[1734308668951,0.14534527,104940.0,104930.0,0.01903237]
[1734308669204,0.190612,104930.0,104910.0,0.20568353]
[1734308669424,0.17814545,104920.0,104910.0,0.1908036]
[1734308669862,0.17695403,104920.0,104910.0,0.1908036]
[1734308670282,0.17814546,104920.0,104910.0,0.1908036]
[1734308670600,0.17814546,104920.0,104910.0,0.19085846]
[1734308671862,0.31200609,104920.0,104910.0,0.00022746]
[1734308672059,0.50143566,104920.0,104910.0,0.00022746]
[1734308672276,0.22515403,104920.0,104910.0,0.19086646]
[1734308672480,0.22515403,104920.0,104910.0,0.00022746]
[1734308672686,0.41577503,104920.0,104910.0,0.00022746]
[1734308673099,0.22515403,104920.0,104910.0,0.00022746]
[1734308673528,0.22420203,104920.0,104910.0,0.19086646]
[1734308674364,0.125148,104920.0,104910.0,0.19086646]
[1734308674564,0.381153,104950.0,104930.0,0.190603]
[1734308674565,0.0508914,104940.0,104930.0,0.190603]
[1734308674805,0.14994543,104940.0,104930.0,0.190603]
[1734308675418,0.14875403,104940.0,104930.0,0.190603]
[1734308676277,0.0497,104940.0,104930.0,0.190603]
[1734308677149,0.0497,104940.0,104920.0,0.381228]
[1734308677150,4.64e-05,104960.0,104950.0,0.190566]
[1734308677360,0.10207649,104960.0,104950.0,0.190566]
[1734308677567,0.09910043,104960.0,104950.0,0.190566]
[1734308678428,0.09964882,104960.0,104950.0,0.190566]
[1734308678673,0.1008398,104960.0,104950.0,0.190566]
[1734308679077,0.09964882,104960.0,104950.0,0.190566]
[1734308679633,0.00059479,104960.0,104950.0,0.190566]
[1734308681069,0.00059479,104960.0,104950.0,0.27622663]
[1734308681270,0.00059479,104960.0,104950.0,0.30756417]
[1734308681862,0.00059479,104960.0,104950.0,0.33695626]
[1734308682434,0.00059479,104960.0,104950.0,0.22190354]
[1734308682677,0.00059479,104960.0,104950.0,0.25129563]
[1734308682916,0.00059479,104960.0,104950.0,0.33695626]
[1734308684900,0.08494744,104980.0,104970.0,0.19053]
[1734308685200,0.00501192,104980.0,104970.0,0.33692026]
[1734308685635,0.00501192,104980.0,104970.0,0.42258089]
[1734308685861,0.00501192,104980.0,104970.0,0.33692026]
[1734308686118,0.00501192,104980.0,104970.0,0.95868089]
[1734308686294,0.00501192,104980.0,104970.0,0.59753492]
[1734308686863,9.2e-07,104980.0,104970.0,1.18363492]
[1734308687074,9.2e-07,104980.0,104970.0,1.7576214]
[1734308687252,2.53872088,105000.0,104970.0,1.7576214]
[1734308687253,2.53872088,105000.0,104990.0,0.190494]
[1734308687463,2.53872088,105000.0,104990.0,0.38959943]
[1734308687669,2.53872088,105000.0,104990.0,0.43266451]
[1734308688250,2.53872088,105000.0,104990.0,0.96876451]
[1734308688873,2.53872088,105000.0,104990.0,1.04776451]
[1734308689294,2.32606796,105000.0,104990.0,6.32922514]
[1734308689459,2.32302274,105000.0,104990.0,4.29970522]
[1734308689631,2.32302274,105000.0,104990.0,1.44070522]
[1734308689834,2.32302274,105000.0,104990.0,1.36378933]
[1734308690039,2.32302274,105000.0,104990.0,1.27922514]
[1734308690251,1.95433437,105000.0,104990.0,1.71718452]
[1734308690453,1.95433437,105000.0,104990.0,2.24024864]
[1734308690454,1.55234771,105000.0,104990.0,2.24024864]
[1734308690703,1.55234771,105000.0,104990.0,2.24025108]
[1734308690921,1.55234771,105000.0,104990.0,1.18677587]
[1734308691134,1.55234771,105000.0,104990.0,6.23677587]
[1734308691369,1.49520371,105000.0,104990.0,3.35777587]
[1734308691571,1.45710771,105000.0,104990.0,3.35777587]
[1734308691775,1.45710771,105000.0,104990.0,1.35277587]
[1734308692381,1.36186771,105000.0,104990.0,1.33377587]
[1734308692592,1.36186771,105000.0,104990.0,1.18677587]
[1734308693277,1.30472371,105000.0,104990.0,1.18667587]
[1734308693475,1.30472371,105000.0,104990.0,1.18257587]
[1734308693476,1.26662771,105000.0,104990.0,1.18257587]
[1734308693700,1.26662771,105000.0,104990.0,1.06112617]
[1734308693905,1.26662771,105000.0,104990.0,1.11112617]
[1734308694929,1.26662771,105000.0,104990.0,1.16112617]
[1734308695132,1.17138771,105000.0,104990.0,1.16112617]
[1734308695338,1.13329171,105000.0,104990.0,1.16112617]
[1734308695549,1.07614771,105000.0,104990.0,1.16112617]
[1734308695761,1.07614771,105000.0,104990.0,5.44712617]
[1734308695972,1.07614771,105000.0,104990.0,3.99012617]
[1734308696178,1.07614771,105000.0,104990.0,3.31280793]
[1734308696376,1.07614771,105000.0,104990.0,2.15342077]
[1734308696587,1.07614771,105000.0,104990.0,1.90942077]
[1734308696801,1.07614771,105000.0,104990.0,1.92973291]
[1734308697385,1.06942701,105000.0,104990.0,1.92973291]
[1734308697806,1.06942701,105000.0,104990.0,1.73752197]
[1734308697957,1.06942701,105000.0,104990.0,1.068398]
[1734308698162,1.06942701,105000.0,104990.0,1.08871014]
[1734308698970,1.06942701,105000.0,104990.0,1.17437077]
[1734308699199,1.03461912,105000.0,104990.0,1.17437077]
[1734308699366,0.97747512,105000.0,104990.0,1.17437077]
[1734308699571,0.95842712,105000.0,104990.0,1.17437077]
[1734308699777,0.40509606,105000.0,104990.0,0.67813071]
[1734308699976,0.35695621,105000.0,104990.0,0.67813071]
[1734308700189,0.35279163,105000.0,104990.0,0.67813071]
[1734308701373,0.32497484,105000.0,104990.0,4.82913071]
[1734308701695,0.24878284,105000.0,104990.0,4.82913071]
[1734308701922,0.24886904,105000.0,104990.0,4.82913071]
[1734308702169,0.22044608,105000.0,104990.0,4.82913071]
[1734308702338,0.22044608,105000.0,104990.0,2.82313071]
[1734308702546,0.22044608,105000.0,104990.0,2.24713071]
[1734308702676,0.22044608,105000.0,104990.0,1.42415794]
[1734308703071,0.22044608,105000.0,104990.0,1.44097326]
[1734308703683,0.22044608,105000.0,104990.0,0.4911854]
[1734308703886,0.22044608,105000.0,104990.0,0.52117505]
[1734308704090,0.22044608,105000.0,104990.0,0.58799037]
[1734308704290,0.22044608,105000.0,104990.0,1.14999037]
[1734308704493,0.22044608,105000.0,104990.0,0.86099037]
[1734308704684,0.22044608,105000.0,104990.0,0.58799037]
[1734308705345,0.22044608,105000.0,104990.0,0.57117505]
[1734308706186,0.22044608,105000.0,104990.0,0.35552477]
[1734308706390,0.22044608,105000.0,104990.0,0.46803535]
[1734308706985,0.22044608,105000.0,104990.0,0.51803535]
[1734308707216,0.22044608,105000.0,104990.0,0.53192533]
[1734308707446,0.22044608,105000.0,104990.0,0.51803535]
[1734308708469,0.22044608,105000.0,104990.0,0.53192533]
[1734308710039,0.22044608,105000.0,104990.0,0.43237472]
[1734308710239,0.30204608,105000.0,104990.0,0.35552477]
[1734308711106,0.30204608,105000.0,104990.0,0.38854373]
[1734308711307,0.30204608,105000.0,104990.0,0.35552477]
[1734308711635,0.30204608,105000.0,104990.0,0.38854373]
[1734308711835,0.30204608,105000.0,104990.0,0.35552477]
[1734308712051,0.30204608,105000.0,104990.0,0.35452477]
[1734308712284,0.30204608,105000.0,104990.0,0.15643942]
[1734308712716,0.30204608,105000.0,104990.0,0.34693342]
[1734308713325,0.34914608,105000.0,104990.0,0.15643942]
[1734308713601,0.083,104990.0,104970.0,0.3812074]
[1734308713766,0.083,104990.0,104980.0,0.13711603]
[1734308713966,0.083,104990.0,104980.0,0.038062]
[1734308714138,0.1301,104990.0,104970.0,0.48042691]
[1734308714355,0.1301,104990.0,104970.0,0.03840188]
[1734308714556,0.1301,104980.0,104970.0,0.03840188]
[1734308714827,0.1301,104980.0,104970.0,0.00033688]
[1734308715773,0.320612,104980.0,104970.0,0.00033688]
[1734308716553,0.1301,104980.0,104970.0,0.00033688]
[1734308716760,0.1301,104980.0,104970.0,0.19086688]
[1734308719920,0.1301,104980.0,104970.0,0.00033688]
[1734308720746,0.1301,104980.0,104960.0,0.01936483]
[1734308720747,0.56575266,104980.0,104960.0,0.01936483]
[1734308720954,0.0751,104960.0,104940.0,0.419222]
[1734308721179,0.0486,104950.0,104940.0,0.22866]
[1734308721598,0.1285,104950.0,104940.0,0.22866]
[1734308722195,0.1285,104950.0,104940.0,0.038075]
[1734308722451,0.00119102,104950.0,104940.0,0.574175]
[1734308722666,0.09905403,104970.0,104940.0,0.81476]
[1734308722883,0.19174209,104960.0,104940.0,0.776685]
[1734308723107,0.00119109,104960.0,104940.0,0.776685]
[1734308723315,0.10024512,104960.0,104950.0,0.08438563]
[1734308723527,0.29079312,104960.0,104950.0,0.08438563]
[1734308723740,0.37526266,104960.0,104950.0,0.49238563]
[1734308725256,0.09905403,104960.0,104950.0,0.49238563]
[1734308725469,0.4972538,104960.0,104950.0,0.49238563]
[1734308725683,0.49606266,104960.0,104950.0,0.49238563]
[1734308725902,0.49606266,104960.0,104950.0,0.23618563]
[1734308726136,0.49606266,104960.0,104910.0,1.18219004]
[1734308726137,0.190586,104940.0,104910.0,1.18219004]
[1734308726347,0.00119132,104930.0,104920.0,0.190621]
[1734308726778,0.10024531,104940.0,104920.0,0.381242]
[1734308726988,0.10024531,104940.0,104920.0,0.190621]
[1734308727412,0.10024531,104940.0,104920.0,0.72726939]
[1734308727740,0.10024531,104940.0,104920.0,0.91789039]
[1734308727945,0.10024531,104930.0,104920.0,0.00054839]
[1734308728362,0.0304,104950.0,104920.0,0.10639076]
[1734308728539,0.0304,104950.0,104940.0,0.726685]
[1734308728540,0.09905403,104950.0,104940.0,0.726685]
[1734308729516,0.09905403,104950.0,104940.0,0.5361]
[1734308730187,0.10024521,104950.0,104940.0,0.5361]
[1734308731665,0.29081121,104950.0,104940.0,0.5361]
[1734308731886,0.28962003,104950.0,104940.0,0.5361]
[1734308732745,0.09905403,104950.0,104940.0,0.5361]
[1734308733159,0.09905403,104950.0,104940.0,0.726685]
[1734308733576,0.09905403,104950.0,104940.0,0.5361]
[1734308733988,0.09905403,104950.0,104930.0,0.726687]
[1734308734505,0.09905403,104950.0,104940.0,0.190585]
[1734308734707,0.01012052,104960.0,104940.0,0.29642737]
[1734308734913,0.0213,104940.0,104920.0,0.53664839]
[1734308735157,0.12934536,104930.0,104920.0,0.53664839]
[1734308735303,0.12934536,104930.0,104920.0,0.00054839]
[1734308735503,0.10024536,104930.0,104920.0,0.00054839]
[1734308735720,0.00119144,104940.0,104920.0,0.77726939]
[1734308735950,0.00119144,104940.0,104920.0,0.96788839]
[1734308736146,0.00119144,104940.0,104920.0,0.58664839]
[1734308736147,0.10024547,104940.0,104920.0,0.58664839]
[1734308736356,0.10024547,104940.0,104920.0,0.77725539]
[1734308736575,0.10024547,104940.0,104920.0,0.96786339]
[1734308736791,0.09905403,104930.0,104920.0,0.53664839]
[1734308737000,0.00119144,104940.0,104920.0,0.53664839]
[1734308737206,0.10024547,104940.0,104920.0,0.53664839]
[1734308738313,0.10024547,104940.0,104920.0,0.53682079]
[1734308738711,0.29083047,104940.0,104920.0,0.53682079]
[1734308738952,0.10024547,104940.0,104920.0,0.91806179]
[1734308739804,0.29083247,104940.0,104920.0,0.53682079]
[1734308740010,0.29083247,104940.0,104920.0,0.00072079]
[1734308740011,0.09905403,104930.0,104920.0,0.00072079]
[1734308740236,0.10024548,104930.0,104920.0,0.00072079]
[1734308740689,0.00119145,104930.0,104920.0,0.00072079]
[1734308742152,0.10024548,104930.0,104920.0,0.00072079]
[1734308742402,0.29084848,104930.0,104920.0,0.00072079]
[1734308742621,0.28965703,104930.0,104920.0,0.00072079]
[1734308742835,0.0291,104940.0,104920.0,0.00072079]
[1734308742999,0.00119141,104930.0,104920.0,0.72743279]
[1734308743229,0.00119141,104930.0,104920.0,0.91805379]
[1734308743440,0.00119139,104940.0,104920.0,0.99955379]
[1734308743638,0.00119139,104940.0,104920.0,0.99954179]
[1734308743849,0.00119139,104940.0,104920.0,0.99954079]
[1734308744476,0.10024542,104940.0,104920.0,0.72742979]
[1734308744675,0.10024542,104940.0,104920.0,0.72744079]
[1734308745837,0.10024542,104940.0,104910.0,0.71162802]
[1734308746036,0.10024542,104940.0,104910.0,0.71179235]
[1734308746506,0.29083142,104940.0,104910.0,0.71179235]
[1734308746715,0.29083342,104940.0,104910.0,0.71179135]
[1734308746902,0.09905403,104930.0,104910.0,0.28053535]
[1734308747153,0.00119147,104920.0,104910.0,0.00016433]
[1734308747774,0.28966203,104930.0,104910.0,0.00016433]
[1734308747775,0.09905403,104930.0,104910.0,0.00016433]
[1734308747977,0.00119149,104930.0,104910.0,0.19079233]
[1734308748183,0.0011914,104940.0,104910.0,0.38142133]
[1734308748385,0.10024543,104940.0,104920.0,0.190621]
[1734308748495,0.10024543,104940.0,104920.0,0.381242]
[1734308749092,0.10024543,104940.0,104920.0,0.190621]
[1734308749474,0.10024543,104940.0,104910.0,0.62204133]
[1734308749690,0.10024543,104940.0,104920.0,0.19062]
[1734308749897,0.10024543,104940.0,104920.0,0.38123]
[1734308750303,0.10024543,104940.0,104920.0,0.571842]
[1734308750711,0.10024543,104940.0,104920.0,0.381222]
[1734308750916,0.10024543,104940.0,104920.0,0.19061]
[1734308751258,0.10024543,104940.0,104920.0,0.38123]
[1734308752070,0.0011914,104940.0,104920.0,0.38122]
[1734308752438,0.01010073,104950.0,104930.0,0.381196]
[1734308752644,0.10915476,104950.0,104930.0,0.571784]
[1734308752828,0.10915476,104950.0,104930.0,0.381181]
[1734308753372,0.00127751,104950.0,104940.0,0.190585]
[1734308753571,8.62e-05,104950.0,104940.0,0.190585]
[1734308753769,8.62e-05,104950.0,104930.0,0.31663944]
[1734308753973,8.62e-05,104950.0,104930.0,0.69782344]
[1734308754225,8.62e-05,104950.0,104930.0,0.02815144]
[1734308754226,0.190585,104940.0,104930.0,0.02815144]
[1734308754397,0.10024537,104940.0,104930.0,0.02815144]
[1734308755639,0.10024537,104940.0,104920.0,0.190618]
[1734308755815,0.00119136,104930.0,104920.0,0.190618]
[1734308756216,0.00119136,104940.0,104920.0,0.38123]
[1734308756576,0.00119136,104940.0,104920.0,0.190612]
[1734308756776,0.29083239,104940.0,104910.0,0.61984979]
[1734308756920,0.29083239,104940.0,104920.0,0.19062]
[1734308757128,0.10024539,104940.0,104920.0,0.19062]
[1734308757722,0.00119136,104940.0,104930.0,0.190603]
[1734308757920,0.00906933,104950.0,104940.0,0.190585]
[1734308758132,0.10812336,104950.0,104940.0,0.190585]
[1734308758333,0.00906933,104950.0,104940.0,0.190585]
[1734308758542,8.62e-05,104950.0,104940.0,0.190585]
[1734308758941,8.62e-05,104950.0,104940.0,0.27539062]
[1734308759163,8.62e-05,104950.0,104940.0,0.71573993]
[1734308759361,8.62e-05,104950.0,104940.0,0.40259905]
[1734308759562,8.62e-05,104950.0,104940.0,0.71573677]
[1734308762323,8.62e-05,104950.0,104940.0,0.40259905]
[1734308762681,8.62e-05,104950.0,104940.0,0.27539062]
[1734308762814,8.62e-05,104950.0,104940.0,0.40259905]
[1734308763163,8.62e-05,104950.0,104940.0,0.57221029]
[1734308763394,8.62e-05,104950.0,104940.0,0.57229968]
[1734308763595,8.62e-05,104950.0,104940.0,0.71593621]
[1734308764207,8.62e-05,104950.0,104940.0,0.80065244]
[1734308764408,8.62e-05,104950.0,104940.0,0.88561348]
[1734308764756,8.62e-05,104950.0,104940.0,0.80065244]
[1734308764962,8.62e-05,104950.0,104940.0,0.88562486]
[1734308765158,8.62e-05,104950.0,104940.0,0.88567492]
[1734308765617,8.62e-05,104950.0,104940.0,0.80065244]
[1734308765821,8.62e-05,104950.0,104940.0,0.88567727]
[1734308766069,8.62e-05,104950.0,104940.0,0.69509227]
[1734308766276,8.62e-05,104950.0,104940.0,0.08502483]
[1734308766483,8.62e-05,104950.0,104930.0,1.00230183]
[1734308766484,0.00127736,104950.0,104930.0,1.00230183]
[1734308766715,0.10033139,104950.0,104930.0,0.81172583]
[1734308766925,0.10033139,104950.0,104930.0,1.00231983]
[1734308767142,0.29089839,104950.0,104930.0,0.62112483]
[1734308767349,0.09905403,104940.0,104930.0,0.5361]
[1734308768563,0.28964003,104940.0,104920.0,0.16512483]
[1734308768797,0.28964003,104940.0,104910.0,0.70394556]
[1734308769848,0.00119139,104930.0,104910.0,0.70394556]
[1734308770335,0.00119139,104930.0,104910.0,0.70412016]
[1734308771068,0.00119139,104930.0,104910.0,0.51349016]
[1734308771316,0.00119139,104930.0,104910.0,0.70411816]
[1734308771559,0.29826068,104940.0,104910.0,0.70411816]
[1734308771560,0.27445207,104940.0,104910.0,0.70411816]
[1734308771796,0.27445207,104940.0,104910.0,0.51349016]
[1734308772041,0.46504607,104940.0,104910.0,0.51349016]
[1734308773056,0.46504607,104940.0,104910.0,0.04703673]
[1734308773303,0.190604,104930.0,104910.0,0.23767373]
[1734308773552,0.09905403,104930.0,104910.0,0.23767373]
[1734308773796,0.28965803,104930.0,104910.0,0.00033673]
[1734308774059,0.48027803,104930.0,104910.0,0.00033673]
[1734308774302,0.09905403,104920.0,104910.0,0.00033673]
[1734308774547,0.28967503,104920.0,104910.0,0.00033673]
[1734308775268,0.190604,104930.0,104910.0,0.00033673]
[1734308775475,0.48027203,104930.0,104910.0,0.00033673]
[1734308776114,0.09905403,104930.0,104910.0,0.19097473]
[1734308778029,0.28965703,104930.0,104910.0,0.00033673]
[1734308778443,0.48026003,104930.0,104910.0,0.00033673]
[1734308780736,0.28967503,104920.0,104910.0,0.00033673]
[1734308782796,0.09905403,104920.0,104910.0,0.00033673]
[1734308783000,0.60010559,104950.0,104910.0,0.00033673]
[1734308783185,0.190612,104930.0,104910.0,0.00033673]
[1734308783430,0.48027803,104930.0,104910.0,0.00033673]
[1734308783632,0.28966603,104930.0,104910.0,0.00033673]
[1734308783843,0.09905403,104930.0,104910.0,0.27337473]
[1734308784436,0.09905403,104930.0,104910.0,0.01257093]
[1734308784668,0.09905403,104930.0,104910.0,0.20319993]
[1734308785227,0.09905403,104930.0,104910.0,0.20337253]
[1734308785589,0.571791,104940.0,104920.0,0.34596446]
[1734308785590,8.63e-05,104940.0,104920.0,0.34596446]
[1734308785828,8.63e-05,104940.0,104930.0,0.190603]
[1734308786057,8.63e-05,104940.0,104930.0,0.34645746]
[1734308786491,8.63e-05,104940.0,104930.0,0.240603]
[1734308787478,8.63e-05,104940.0,104930.0,0.321903]
[1734308788291,8.63e-05,104940.0,104930.0,0.13017282]
[1734308788706,8.63e-05,104940.0,104930.0,0.85687582]
[1734308788852,8.63e-05,104940.0,104930.0,0.96273028]
[1734308789080,8.63e-05,104940.0,104930.0,1.11118431]
[1734308789297,8.63e-05,104940.0,104930.0,1.19598291]
[1734308789530,8.63e-05,104940.0,104930.0,1.24598291]
[1734308789740,8.62e-05,104990.0,104970.0,0.314213]
[1734308789941,0.09914023,104990.0,104980.0,0.190512]
[1734308790379,8.62e-05,104990.0,104980.0,0.88133928]
[1734308791002,0.00063459,104990.0,104980.0,0.88133928]
[1734308792813,0.00063459,104990.0,104980.0,0.98039331]
[1734308793023,0.00063459,104990.0,104980.0,1.05909331]
[1734308794101,0.00063459,104990.0,104980.0,1.0588819]
[1734308794530,0.00063459,104990.0,104980.0,1.11170706]
[1734308795855,0.00063459,104990.0,104980.0,1.16170706]
[1734308796061,0.00063459,104990.0,104980.0,1.20900706]
[1734308796489,0.00063459,104990.0,104980.0,1.29343047]
[1734308796732,0.00297462,105030.0,105020.0,0.77541182]
[1734308797002,0.00313907,105030.0,105020.0,0.77541182]
[1734308797491,0.1904723,105050.0,105030.0,0.190421]
[1734308797705,0.28952633,105050.0,105030.0,0.190421]
[1734308797940,0.09914033,105050.0,105020.0,0.77539982]
[1734308798193,0.09914033,105050.0,105020.0,0.77556427]
[1734308798481,8.63e-05,105050.0,105030.0,0.380816]
[1734308798737,8.63e-05,105050.0,105040.0,0.190403]
[1734308799155,0.28952733,105050.0,105020.0,0.23946527]
[1734308799591,0.28952733,105050.0,105020.0,0.62033127]
[1734308799768,0.28952733,105050.0,105020.0,0.42989227]
[1734308800009,0.28952733,105050.0,105020.0,0.62031827]
[1734308800250,8.63e-05,105050.0,105030.0,0.42971282]
[1734308800457,8.63e-05,105050.0,105030.0,0.380828]
[1734308802853,0.1904723,105050.0,105030.0,0.190409]
[1734308803058,8.63e-05,105050.0,105030.0,0.190409]
[1734308803494,0.1904723,105050.0,105030.0,0.190409]
[1734308803701,8.63e-05,105050.0,105040.0,0.190403]
[1734308804357,8.63e-05,105050.0,105030.0,0.916929]
[1734308804787,8.63e-05,105050.0,105030.0,0.190409]
[1734308804994,0.1904713,105050.0,105030.0,0.190409]
[1734308805197,0.47991133,105050.0,105020.0,1.15642027]
[1734308805887,0.47991133,105050.0,105030.0,0.19042]
[1734308806519,8.63e-05,105050.0,105030.0,0.380832]
[1734308806722,8.63e-05,105050.0,105040.0,0.190403]
[1734308809577,8.63e-05,105050.0,105040.0,0.185403]
[1734308812398,8.63e-05,105050.0,105030.0,1.04308982]
[1734308812613,8.63e-05,105050.0,105030.0,1.23350082]
[1734308813891,8.63e-05,105050.0,105040.0,0.190403]
[1734308814096,8.63e-05,105050.0,105040.0,0.238603]
[1734308814304,8.63e-05,105050.0,105040.0,1.05112985]
[1734308814473,8.63e-05,105050.0,105040.0,1.07684797]
[1734308814672,8.63e-05,105050.0,105040.0,1.05112985]
[1734308815778,8.63e-05,105050.0,105040.0,1.07075413]
[1734308816468,8.63e-05,105050.0,105040.0,1.02075413]
[1734308817047,8.63e-05,105050.0,105040.0,1.07075413]
[1734308817274,8.63e-05,105050.0,105040.0,1.05112985]
[1734308817886,8.63e-05,105050.0,105040.0,1.00112985]
[1734308818062,8.63e-05,105050.0,105040.0,0.853203]
[1734308818260,8.63e-05,105050.0,105040.0,0.5361]
[1734308818638,8.63e-05,105050.0,105040.0,0.726503]
[1734308819765,8.63e-05,105050.0,105040.0,0.77537582]
[1734308819978,8.63e-05,105050.0,105040.0,0.85537582]
[1734308820461,8.63e-05,105050.0,105040.0,0.726503]
[1734308821073,8.63e-05,105050.0,105040.0,0.5361]
[1734308821288,8.63e-05,105050.0,105030.0,0.96579082]
[1734308821509,8.63e-05,105050.0,105040.0,0.190403]
[1734308822559,8.63e-05,105050.0,105040.0,0.31587582]
[1734308822989,8.63e-05,105050.0,105040.0,0.85197582]
[1734308823834,8.63e-05,105050.0,105040.0,0.89847582]
[1734308824037,8.63e-05,105050.0,105040.0,0.99752985]
[1734308824433,8.63e-05,105050.0,105040.0,1.04752985]
[1734308825058,8.63e-05,105050.0,105040.0,1.06096291]
[1734308826520,8.63e-05,105050.0,105040.0,1.16416848]
[1734308826726,8.63e-05,105050.0,105040.0,1.1530801]
[1734308827128,8.63e-05,105050.0,105040.0,1.16416848]
[1734308827341,8.63e-05,105050.0,105040.0,1.18881158]
[1734308827984,8.63e-05,105050.0,105040.0,1.20007632]
[1734308829248,8.62e-05,105060.0,105050.0,0.90375455]
[1734308829454,8.62e-05,105060.0,105050.0,1.19319358]
[1734308830295,8.62e-05,105060.0,105050.0,1.16855048]
[1734308830701,8.62e-05,105060.0,105050.0,1.1917807]
[1734308834398,4.62e-05,105060.0,105050.0,1.1917807]
[1734308834797,4.62e-05,105060.0,105050.0,1.16855048]
[1734308835060,4.62e-05,105060.0,105050.0,1.1917807]
[1734308836794,4.62e-05,105060.0,105050.0,1.21096612]
[1734308837202,2e-07,105060.0,105050.0,1.28715834]
[1734308837542,8.62e-05,105100.0,105090.0,0.85628582]
[1734308837668,8.62e-05,105100.0,105090.0,0.77528582]
[1734308837857,0.0285862,105100.0,105090.0,0.77528582]
[1734308838260,0.0235862,105100.0,105090.0,0.77528582]
[1734308838916,0.02413449,105100.0,105090.0,0.77528582]
[1734308839904,0.02413449,105100.0,105090.0,0.726413]
[1734308840104,0.02413449,105100.0,105090.0,0.5361]
[1734308840335,0.02413449,105100.0,105090.0,0.726413]
[1734308840929,0.03490179,105100.0,105090.0,0.726413]
[1734308841131,0.03490179,105100.0,105090.0,1.1103901]
[1734308841735,0.03490179,105100.0,105090.0,1.00483985]
[1734308842140,0.03498799,105100.0,105090.0,1.00483985]
[1734308844122,0.03498799,105100.0,105090.0,0.856913]
[1734308844329,0.03498799,105100.0,105090.0,0.5361]
[1734308844504,0.03498799,105100.0,105090.0,0.726413]
[1734308845284,0.03498799,105100.0,105090.0,0.190313]
[1734308845660,0.03498799,105100.0,105080.0,0.96560682]
[1734308845865,0.03498799,105100.0,105080.0,1.15592582]
[1734308846307,0.03498799,105100.0,105090.0,0.190313]
[1734308846504,0.03498799,105100.0,105070.0,1.09354382]
[1734308846505,0.39474702,105100.0,105070.0,1.09354382]
[1734308846715,0.190317,105090.0,105060.0,0.96569482]
[1734308846947,0.47569603,105090.0,105070.0,0.190348]
[1734308847959,0.28537103,105090.0,105070.0,0.190348]
[1734308848198,0.29568799,105100.0,105070.0,0.48623125]
[1734308848511,0.58504602,105100.0,105080.0,0.190329]
[1734308848631,0.58504602,105100.0,105070.0,0.42955382]
[1734308848848,0.58504602,105100.0,105070.0,0.61989182]
[1734308849066,0.58504602,105100.0,105080.0,0.190329]
[1734308849268,0.39474202,105100.0,105080.0,0.190329]
[1734308849480,0.58504702,105100.0,105080.0,0.190329]
[1734308850133,0.03498799,105100.0,105090.0,0.190313]
[1734308850596,0.03498799,105100.0,105080.0,0.380649]
[1734308850738,0.03498799,105100.0,105080.0,0.57097]
[1734308851345,0.03498799,105100.0,105080.0,0.380641]
[1734308851548,0.03498799,105100.0,105090.0,0.190313]
[1734308855980,0.03498799,105100.0,105080.0,0.96561482]
[1734308856187,0.03498799,105100.0,105090.0,0.190313]
[1734308856524,0.03498799,105100.0,105080.0,0.96561382]
[1734308856736,0.00297241,105090.0,105080.0,0.96561382]
[1734308856954,0.22528299,105100.0,105080.0,1.15593582]
[1734308857155,0.00297242,105090.0,105080.0,0.96561382]
[1734308857356,0.03498799,105100.0,105080.0,1.15593582]
[1734308857556,0.00297243,105090.0,105080.0,0.96561382]
[1734308857802,0.03498799,105100.0,105090.0,0.190313]
[1734308858596,0.03498799,105100.0,105080.0,0.96561282]
[1734308859034,0.00297241,105090.0,105080.0,0.96561282]
[1734308859266,0.03498799,105100.0,105080.0,0.96561282]
[1734308859459,0.03498799,105100.0,105080.0,1.15593482]
[1734308859665,0.00297238,105090.0,105080.0,0.96561282]
[1734308859976,0.22528299,105100.0,105080.0,1.15593182]
[1734308860177,0.0029724,105090.0,105080.0,0.96561182]
[1734308860383,0.03498799,105100.0,105080.0,1.15593182]
[1734308860607,0.00297243,105090.0,105080.0,0.96561182]
[1734308860828,0.03498799,105100.0,105080.0,0.96561182]
[1734308861035,0.03498799,105100.0,105090.0,0.190313]
[1734308865700,0.03498799,105100.0,105090.0,0.1904854]
[1734308866968,0.22528199,105100.0,105090.0,0.0001724]
[1734308867176,0.03498799,105100.0,105090.0,0.0001724]
[1734308867381,0.03498799,105100.0,105090.0,0.1904854]
[1734308868988,0.03498799,105100.0,105090.0,0.2687854]
[1734308871696,0.05606614,105100.0,105090.0,0.2687854]
[1734308871881,0.05476699,105100.0,105090.0,0.2687854]
[1734308872156,0.05606612,105100.0,105090.0,0.2687854]
[1734308873749,0.05476699,105100.0,105090.0,0.2687854]
[1734308877636,0.05606612,105100.0,105090.0,0.2687854]
[1734308877771,0.05476699,105100.0,105090.0,0.2687854]
[1734308877982,0.05606658,105100.0,105090.0,0.2687854]
[1734308878180,0.04529928,105100.0,105090.0,0.2687854]
[1734308878829,0.04399969,105100.0,105090.0,0.2687854]
[1734308879003,0.04529928,105100.0,105090.0,0.2687854]
[1734308881100,0.04659967,105100.0,105090.0,0.2687854]
[1734308881275,0.04530008,105100.0,105090.0,0.2687854]
[1734308881660,0.04399969,105100.0,105090.0,0.2687854]
[1734308882122,0.04530008,105100.0,105090.0,0.2687854]
[1734308882387,0.02499969,105100.0,105090.0,0.1904854]
[1734308882633,0.04530008,105100.0,105090.0,0.1904854]
[1734308882877,0.04399969,105100.0,105090.0,0.1904854]
[1734308883133,0.04529988,105100.0,105090.0,0.1904854]
[1734308883371,0.04529989,105100.0,105090.0,0.1904854]
[1734308883810,0.04529989,105100.0,105090.0,0.43897813]
[1734308884010,0.04399969,105100.0,105090.0,1.06236762]
[1734308884676,0.04529989,105100.0,105090.0,1.23169914]
[1734308884697,0.04529989,105100.0,105090.0,1.06236762]
[1734308884698,0.04399969,105100.0,105090.0,1.06236762]
[1734308884936,0.04399969,105100.0,105090.0,1.23169914]
[1734308886091,0.04399969,105100.0,105090.0,1.23167082]
[1734308886961,0.04399969,105100.0,105090.0,1.26790882]
[1734308887195,0.00594169,105100.0,105090.0,1.93256689]
[1734308887401,0.00594169,105100.0,105090.0,1.95812675]
[1734308887603,0.00594169,105100.0,105090.0,1.93253581]
[1734308888158,0.00594169,105100.0,105090.0,1.81342561]
[1734308888405,0.13891061,105150.0,105140.0,0.469322]
[1734308888567,0.0159067,105160.0,105150.0,0.2291]
[1734308888775,0.0159067,105160.0,105150.0,0.65846592]
[1734308889141,0.01603123,105160.0,105150.0,0.46835803]
[1734308889342,0.01603123,105160.0,105150.0,0.57187178]
[1734308889480,0.01603123,105160.0,105150.0,0.874404]
[1734308889658,0.01603123,105160.0,105150.0,0.924404]
[1734308889873,0.01603123,105160.0,105150.0,0.844804]
[1734308890078,0.01603123,105160.0,105150.0,0.6046]
[1734308890079,0.02078397,105160.0,105150.0,0.6046]
[1734308890276,0.02078431,105160.0,105150.0,0.6046]
[1734308890482,0.01603123,105160.0,105150.0,0.6046]
[1734308890734,0.01603123,105160.0,105150.0,0.94385803]
[1734308890973,0.01603123,105160.0,105150.0,0.94541745]
[1734308891378,0.0207845,105160.0,105150.0,0.94541745]